[Event "FIDE World Rapid Chess Championship 2021"]
[White "Erdos, Viktor"]
[Black "Kolosowski, Mateusz"]
[WhiteFideId "719978"]
[BlackFideId "1129708"]
[WhiteElo "2601"]
[BlackElo "2371"]
[Result "1-0"]
[Round "01"]
[TimeControl "900+10"]
[Date "2021.12.26"]
[WhiteClock "0:00:00"]
[BlackClock "0:00:00"]

1. e4 {[%clk 0:00:00]}  e5 {[%clk 0:00:00]} 2. Nf3 {[%clk 0:00:00]}  Nc6 {[%clk 0:00:00]} 3. Bc4 {[%clk 0:00:00]}  Nf6 {[%clk 0:00:00]} 4. d3 {[%clk 0:00:00]}  Be7 {[%clk 0:00:00]} 5. O-O {[%clk 0:00:00]}  O-O {[%clk 0:00:00]} 6. Re1 {[%clk 0:00:00]}  d6 {[%clk 0:00:00]} 7. a4 {[%clk 0:00:00]}  h6 {[%clk 0:00:00]} 8. h3 {[%clk 0:00:00]}  Re8 {[%clk 0:00:00]} 9. a5 {[%clk 0:00:00]}  Rb8 {[%clk 0:00:00]} 10. c3 {[%clk 0:00:00]}  Bf8 {[%clk 0:00:00]} 11. Nbd2 {[%clk 0:00:00]}  Be6 {[%clk 0:00:00]} 12. Bxe6 {[%clk 0:00:00]}  Rxe6 {[%clk 0:00:00]} 13. d4 {[%clk 0:00:00]}  exd4 {[%clk 0:00:00]} 14. cxd4 {[%clk 0:00:00]}  d5 {[%clk 0:00:00]} 15. e5 {[%clk 0:00:00]}  Ne4 {[%clk 0:00:00]} 16. Nxe4 {[%clk 0:00:00]}  dxe4 {[%clk 0:00:00]} 17. d5 {[%clk 0:00:00]}  Re8 {[%clk 0:00:00]} 18. Rxe4 {[%clk 0:00:00]}  Nb4 {[%clk 0:00:00]} 19. Rd4 {[%clk 0:00:00]}  Bc5 {[%clk 0:00:00]} 20. Rg4 {[%clk 0:00:00]}  Kh8 {[%clk 0:00:00]} 21. Be3 {[%clk 0:00:00]}  Bxe3 {[%clk 0:00:00]} 22. Rxb4 {[%clk 0:00:00]}  Bc5 {[%clk 0:00:00]} 23. Rc4 {[%clk 0:00:00]}  b6 {[%clk 0:00:00]} 24. b4 {[%clk 0:00:00]}  Bf8 {[%clk 0:00:00]} 25. Rac1 {[%clk 0:00:00]}  bxa5 {[%clk 0:00:00]} 26. bxa5 {[%clk 0:00:00]}  Rb5 {[%clk 0:00:00]} 27. Rxc7 {[%clk 0:00:00]}  Rxd5 {[%clk 0:00:00]} 28. Qa4 {[%clk 0:00:00]}  Kg8 {[%clk 0:00:00]} 29. Rxa7 {[%clk 0:00:00]}  Bc5 {[%clk 0:00:00]} 30. Rb7 {[%clk 0:00:00]}  Re6 {[%clk 0:00:00]} 31. a6 {[%clk 0:00:00]}  Qa8 {[%clk 0:00:00]} 32. a7 {[%clk 0:00:00]}  Rd8 {[%clk 0:00:00]} 33. Rb8 {[%clk 0:00:00]}  Bxf2+ {[%clk 0:00:00]} 34. Kxf2 {[%clk 0:00:00]}  Rxb8 {[%clk 0:00:00]} 35. axb8=Q+ {[%clk 0:00:00]}  Qxb8 {[%clk 0:00:00]} 36. Qc2 {[%clk 0:00:00]}  Qa7+ {[%clk 0:00:00]} 37. Qc5 {[%clk 0:00:00]}  Qa2+ {[%clk 0:00:00]} 38. Kg1 {[%clk 0:00:00]}  Rg6 {[%clk 0:00:00]} 39. Qf2 {[%clk 0:00:00]}  Qe6 {[%clk 0:00:00]} 40. Kh1 {[%clk 0:00:00]}  Qf5 {[%clk 0:00:00]} 41. Re1 {[%clk 0:00:00]}  Qf4 {[%clk 0:00:00]} 42. Rf1 {[%clk 0:00:00]}  Qc4 {[%clk 0:00:00]} 43. Nh4 {[%clk 0:00:00]}  Ra6 {[%clk 0:00:00]} 44. Qf4 {[%clk 0:00:00]}  Qa2 {[%clk 0:00:00]} 45. Nf5 {[%clk 0:00:00]}  Re6 {[%clk 0:00:00]} 46. Qg3 {[%clk 0:00:00]} 1-0


[Site "http://www.Chess.com"]

[Event "FIDE World Rapid Chess Championship 2021"]
[White "Vachier-Lagrave, Maxime"]
[Black "Durarbayli, Vasif"]
[WhiteFideId "623539"]
[BlackFideId "13402935"]
[WhiteElo "2773"]
[BlackElo "2532"]
[Result "1/2-1/2"]
[Round "01"]
[TimeControl "900+10"]
[Date "2021.12.26"]
[WhiteClock "0:09:34"]
[BlackClock "0:11:03"]

1. e4 {[%clk 0:15:17]}  e5 {[%clk 0:15:19]} 2. Nf3 {[%clk 0:15:26]}  Nc6 {[%clk 0:15:28]} 3. Bb5 {[%clk 0:15:33]}  a6 {[%clk 0:15:36]} 4. Ba4 {[%clk 0:15:41]}  Nf6 {[%clk 0:15:45]} 5. O-O {[%clk 0:15:48]}  Be7 {[%clk 0:15:54]} 6. d3 {[%clk 0:15:48]}  b5 {[%clk 0:15:58]} 7. Bb3 {[%clk 0:15:56]}  O-O {[%clk 0:16:02]} 8. Nc3 {[%clk 0:15:19]}  d6 {[%clk 0:15:38]} 9. a3 {[%clk 0:15:19]}  h6 {[%clk 0:15:18]} 10. Re1 {[%clk 0:14:21]}  Rb8 {[%clk 0:14:25]} 11. h3 {[%clk 0:14:08]}  Na5 {[%clk 0:12:13]} 12. Ba2 {[%clk 0:14:12]}  c5 {[%clk 0:12:22]} 13. b4 {[%clk 0:13:14]}  cxb4 {[%clk 0:12:03]} 14. axb4 {[%clk 0:13:22]}  Nc6 {[%clk 0:12:12]} 15. Rb1 {[%clk 0:13:10]}  a5 {[%clk 0:11:11]} 16. bxa5 {[%clk 0:09:02]}  Qxa5 {[%clk 0:11:10]} 17. Bd2 {[%clk 0:09:02]}  b4 {[%clk 0:11:07]} 18. Nd5 {[%clk 0:09:03]}  Qxa2 {[%clk 0:10:39]} 19. Ra1 {[%clk 0:09:12]}  Qb2 {[%clk 0:10:48]} 20. Rb1 {[%clk 0:09:20]}  Qa2 {[%clk 0:10:57]} 21. Ra1 {[%clk 0:09:25]}  Qb2 {[%clk 0:11:03]} 22. Rb1 {[%clk 0:09:34]} 1/2-1/2


[Site "http://www.Chess.com"]

[Event "FIDE World Rapid Chess Championship 2021"]
[White "Klekowski, Maciej"]
[Black "Caruana, Fabiano"]
[WhiteFideId "1132717"]
[BlackFideId "2020009"]
[WhiteElo "2528"]
[BlackElo "2770"]
[Result "0-1"]
[Round "01"]
[TimeControl "900+10"]
[Date "2021.12.26"]
[WhiteClock "0:00:29"]
[BlackClock "0:00:56"]

1. c4 {[%clk 0:15:18]}  e5 {[%clk 0:15:18]} 2. Nc3 {[%clk 0:15:25]}  Bb4 {[%clk 0:15:26]} 3. Nd5 {[%clk 0:15:32]}  Be7 {[%clk 0:15:34]} 4. d4 {[%clk 0:15:13]}  d6 {[%clk 0:15:27]} 5. g3 {[%clk 0:13:38]}  Nf6 {[%clk 0:14:44]} 6. Nxf6+ {[%clk 0:13:15]}  Bxf6 {[%clk 0:14:51]} 7. d5 {[%clk 0:13:23]}  O-O {[%clk 0:14:33]} 8. Bg2 {[%clk 0:13:31]}  a5 {[%clk 0:13:55]} 9. Nf3 {[%clk 0:13:34]}  Na6 {[%clk 0:14:01]} 10. O-O {[%clk 0:12:57]}  Nc5 {[%clk 0:14:02]} 11. Be3 {[%clk 0:12:25]}  b6 {[%clk 0:14:07]} 12. b3 {[%clk 0:12:23]}  Bf5 {[%clk 0:13:47]} 13. Nd2 {[%clk 0:09:26]}  Qd7 {[%clk 0:12:49]} 14. Bxc5 {[%clk 0:08:44]}  bxc5 {[%clk 0:12:58]} 15. e4 {[%clk 0:08:53]}  Bg4 {[%clk 0:12:51]} 16. f3 {[%clk 0:08:47]}  Bh5 {[%clk 0:12:43]} 17. Nb1 {[%clk 0:08:56]}  Bg5 {[%clk 0:12:25]} 18. Qd3 {[%clk 0:08:17]}  f5 {[%clk 0:11:04]} 19. Nc3 {[%clk 0:08:05]}  f4 {[%clk 0:11:04]} 20. Rf2 {[%clk 0:07:38]}  Rf6 {[%clk 0:10:54]} 21. Kf1 {[%clk 0:03:29]}  fxg3 {[%clk 0:09:17]} 22. hxg3 {[%clk 0:03:37]}  Raf8 {[%clk 0:09:25]} 23. Ke2 {[%clk 0:03:29]}  Be8 {[%clk 0:06:32]} 24. Rh1 {[%clk 0:03:23]}  Qe7 {[%clk 0:06:04]} 25. Bh3 {[%clk 0:03:08]}  Bd7 {[%clk 0:05:39]} 26. Bxd7 {[%clk 0:03:14]}  Qxd7 {[%clk 0:05:48]} 27. a4 {[%clk 0:01:26]}  Bh6 {[%clk 0:05:32]} 28. Nb5 {[%clk 0:01:16]}  Qf7 {[%clk 0:05:07]} 29. Qc3 {[%clk 0:00:56]}  Qg6 {[%clk 0:04:48]} 30. Nxc7 {[%clk 0:00:24]}  Qxg3 {[%clk 0:04:45]} 31. Rhf1 {[%clk 0:00:33]}  R6f7 {[%clk 0:03:44]} 32. Qxa5 {[%clk 0:00:21]}  Qf4 {[%clk 0:03:33]} 33. Kd3 {[%clk 0:00:29]}  Qe3+ {[%clk 0:01:39]} 34. Kc2 {[%clk 0:00:38]}  Bf4 {[%clk 0:01:47]} 35. Ne6 {[%clk 0:00:15]}  Rb8 {[%clk 0:00:43]} 36. Qc3 {[%clk 0:00:24]}  Rfb7 {[%clk 0:00:48]} 37. Qxe3 {[%clk 0:00:25]}  Bxe3 {[%clk 0:00:57]} 38. Rg2 {[%clk 0:00:34]}  Rxb3 {[%clk 0:00:56]} 39. Rxg7+ {[%clk 0:00:39]}  Kh8 {[%clk 0:01:06]} 40. Ra1 {[%clk 0:00:31]}  Rb2+ {[%clk 0:01:13]} 41. Kd1 {[%clk 0:00:40]}  Rh2 {[%clk 0:01:05]} 42. Rd7 {[%clk 0:00:45]}  Rg8 {[%clk 0:00:30]} 43. Rd8 {[%clk 0:00:49]}  Rxd8 {[%clk 0:00:16]} 44. Nxd8 {[%clk 0:00:58]}  Bg5 {[%clk 0:00:24]} 45. Ra3 {[%clk 0:00:12]}  Bxd8 {[%clk 0:00:33]} 46. a5 {[%clk 0:00:21]}  Rb2 {[%clk 0:00:41]} 47. a6 {[%clk 0:00:21]}  Rb8 {[%clk 0:00:50]} 48. a7 {[%clk 0:00:26]}  Ra8 {[%clk 0:00:59]} 49. Ra6 {[%clk 0:00:23]}  Be7 {[%clk 0:00:27]} 50. Kc2 {[%clk 0:00:15]}  h5 {[%clk 0:00:31]} 51. Kb3 {[%clk 0:00:21]}  h4 {[%clk 0:00:32]} 52. Ka4 {[%clk 0:00:31]}  h3 {[%clk 0:00:37]} 53. Kb5 {[%clk 0:00:40]}  h2 {[%clk 0:00:45]} 54. Ra1 {[%clk 0:00:49]}  Rxa7 {[%clk 0:00:28]} 55. Rxa7 {[%clk 0:00:58]}  h1=Q {[%clk 0:00:36]} 56. Rxe7 {[%clk 0:01:06]}  Qxf3 {[%clk 0:00:44]} 57. Kc6 {[%clk 0:00:54]}  Qxe4 {[%clk 0:00:49]} 58. Kxd6 {[%clk 0:01:01]}  Qxc4 {[%clk 0:00:57]} 59. Kxe5 {[%clk 0:00:58]}  Kg8 {[%clk 0:00:45]} 60. d6 {[%clk 0:00:34]}  Kf8 {[%clk 0:00:53]} 61. Rc7 {[%clk 0:00:20]}  Ke8 {[%clk 0:00:50]} 62. Ra7 {[%clk 0:00:12]}  Qd4+ {[%clk 0:00:51]} 63. Ke6 {[%clk 0:00:21]}  Qe4+ {[%clk 0:01:00]} 64. Kf6 {[%clk 0:00:29]}  Qd5 {[%clk 0:00:56]} 0-1


[Site "http://www.Chess.com"]

[Event "FIDE World Rapid Chess Championship 2021"]
[White "Wieczorek, Oskar"]
[Black "Mohamed Ahmed , Aly"]
[WhiteFideId "1133950"]
[BlackFideId "10686347"]
[WhiteElo "2367"]
[BlackElo "2602"]
[Result "1-0"]
[Round "01"]
[TimeControl "900+10"]
[Date "2021.12.26"]
[WhiteClock "0:07:13"]
[BlackClock "0:09:22"]

1. e4 {[%clk 0:15:18]}  c6 {[%clk 0:15:18]} 2. d4 {[%clk 0:15:26]}  d5 {[%clk 0:15:26]} 3. Nd2 {[%clk 0:15:34]}  dxe4 {[%clk 0:15:34]} 4. Nxe4 {[%clk 0:15:42]}  Nd7 {[%clk 0:15:41]} 5. Ng5 {[%clk 0:15:49]}  Ndf6 {[%clk 0:15:47]} 6. Bc4 {[%clk 0:15:26]}  Nh6 {[%clk 0:15:55]} 7. N1f3 {[%clk 0:13:59]}  g6 {[%clk 0:16:02]} 8. O-O {[%clk 0:12:57]}  Bg7 {[%clk 0:16:09]} 9. Ne5 {[%clk 0:12:28]}  Nd5 {[%clk 0:15:59]} 10. Ne4 {[%clk 0:11:56]}  O-O {[%clk 0:15:44]} 11. c3 {[%clk 0:11:50]}  a5 {[%clk 0:15:30]} 12. a4 {[%clk 0:11:49]}  Nf5 {[%clk 0:15:35]} 13. Re1 {[%clk 0:11:34]}  Qc7 {[%clk 0:15:25]} 14. Ng3 {[%clk 0:11:01]}  Nd6 {[%clk 0:14:40]} 15. Ba2 {[%clk 0:10:48]}  b6 {[%clk 0:14:40]} 16. h4 {[%clk 0:10:46]}  f6 {[%clk 0:14:08]} 17. Nd3 {[%clk 0:10:08]}  Kh8 {[%clk 0:13:46]} 18. Nf4 {[%clk 0:09:28]}  Nxf4 {[%clk 0:09:59]} 19. Bxf4 {[%clk 0:09:35]}  Qd8 {[%clk 0:10:08]} 20. Be6 {[%clk 0:08:02]}  Bb7 {[%clk 0:09:38]} 21. h5 {[%clk 0:07:41]}  g5 {[%clk 0:09:24]} 22. Bxd6 {[%clk 0:07:50]}  exd6 {[%clk 0:09:32]} 23. h6 {[%clk 0:07:04]}  Bxh6 {[%clk 0:09:22]} 24. Qh5 {[%clk 0:07:13]} 1-0


[Site "http://www.Chess.com"]

[Event "FIDE World Rapid Chess Championship 2021"]
[White "Giri, Anish"]
[Black "Pichot, Alan"]
[WhiteFideId "24116068"]
[BlackFideId "110973"]
[WhiteElo "2767"]
[BlackElo "2523"]
[Result "1/2-1/2"]
[Round "01"]
[TimeControl "900+10"]
[Date "2021.12.26"]
[WhiteClock "0:00:59"]
[BlackClock "0:00:56"]

1. c4 {[%clk 0:15:16]}  Nf6 {[%clk 0:14:54]} 2. g3 {[%clk 0:15:27]}  e6 {[%clk 0:14:50]} 3. Bg2 {[%clk 0:15:35]}  d5 {[%clk 0:14:57]} 4. Nf3 {[%clk 0:15:43]}  Be7 {[%clk 0:14:38]} 5. O-O {[%clk 0:15:50]}  O-O {[%clk 0:14:45]} 6. d4 {[%clk 0:15:57]}  dxc4 {[%clk 0:14:43]} 7. Qc2 {[%clk 0:16:06]}  a6 {[%clk 0:14:48]} 8. a4 {[%clk 0:16:14]}  c5 {[%clk 0:14:38]} 9. dxc5 {[%clk 0:16:18]}  Bxc5 {[%clk 0:14:46]} 10. Qxc4 {[%clk 0:15:35]}  Nbd7 {[%clk 0:14:42]} 11. a5 {[%clk 0:13:04]}  b5 {[%clk 0:14:11]} 12. axb6 {[%clk 0:13:12]}  Bb7 {[%clk 0:14:11]} 13. Nc3 {[%clk 0:13:16]}  Rc8 {[%clk 0:13:39]} 14. Qh4 {[%clk 0:12:56]}  Nxb6 {[%clk 0:12:03]} 15. Rd1 {[%clk 0:12:05]}  Qe7 {[%clk 0:12:03]} 16. Bg5 {[%clk 0:11:35]}  h6 {[%clk 0:10:53]} 17. Bxf6 {[%clk 0:11:02]}  Qxf6 {[%clk 0:11:02]} 18. Qxf6 {[%clk 0:11:04]}  gxf6 {[%clk 0:11:10]} 19. Ne1 {[%clk 0:09:22]}  Rc7 {[%clk 0:08:21]} 20. Na4 {[%clk 0:05:00]}  Nxa4 {[%clk 0:05:11]} 21. Rxa4 {[%clk 0:05:08]}  Be7 {[%clk 0:05:11]} 22. Bxb7 {[%clk 0:04:14]}  Rxb7 {[%clk 0:05:20]} 23. Nd3 {[%clk 0:04:23]}  Rb6 {[%clk 0:05:18]} 24. Rda1 {[%clk 0:04:31]}  Ra8 {[%clk 0:05:27]} 25. g4 {[%clk 0:04:32]}  Kg7 {[%clk 0:04:57]} 26. Kg2 {[%clk 0:04:41]}  Kg6 {[%clk 0:05:02]} 27. h3 {[%clk 0:04:00]}  Bd6 {[%clk 0:05:02]} 28. f4 {[%clk 0:03:54]}  f5 {[%clk 0:03:37]} 29. Kf3 {[%clk 0:04:03]}  fxg4+ {[%clk 0:03:31]} 30. hxg4 {[%clk 0:04:12]}  Kg7 {[%clk 0:03:40]} 31. Rc1 {[%clk 0:03:47]}  Ra7 {[%clk 0:02:54]} 32. Rcc4 {[%clk 0:03:07]}  Be7 {[%clk 0:02:59]} 33. f5 {[%clk 0:02:41]}  Bf6 {[%clk 0:02:56]} 34. fxe6 {[%clk 0:02:04]}  Rxe6 {[%clk 0:02:37]} 35. Re4 {[%clk 0:01:48]}  Rb6 {[%clk 0:02:39]} 36. b4 {[%clk 0:01:43]}  Bg5 {[%clk 0:02:41]} 37. Re5 {[%clk 0:01:47]}  Rc7 {[%clk 0:02:14]} 38. Raa5 {[%clk 0:01:37]}  Rc4 {[%clk 0:01:24]} 39. Rac5 {[%clk 0:01:34]}  Rd4 {[%clk 0:01:26]} 40. Rf5 {[%clk 0:01:26]}  Rd7 {[%clk 0:01:15]} 41. Rc4 {[%clk 0:01:25]}  Re7 {[%clk 0:01:11]} 42. e4 {[%clk 0:00:44]}  Rd6 {[%clk 0:00:59]} 43. Ke2 {[%clk 0:00:50]}  Red7 {[%clk 0:01:01]} 44. Ne5 {[%clk 0:00:55]}  Rd2+ {[%clk 0:00:56]} 45. Kf3 {[%clk 0:00:59]} 1/2-1/2


[Site "http://www.Chess.com"]

[Event "FIDE World Rapid Chess Championship 2021"]
[White "Ivic, Velimir"]
[Black "Timofeev, Artyom"]
[WhiteFideId "950122"]
[BlackFideId "4140419"]
[WhiteElo "2357"]
[BlackElo "2591"]
[Result "1/2-1/2"]
[Round "01"]
[TimeControl "900+10"]
[Date "2021.12.26"]
[WhiteClock "0:00:21"]
[BlackClock "0:01:17"]

1. e4 {[%clk 0:15:17]}  c5 {[%clk 0:15:18]} 2. Nf3 {[%clk 0:15:25]}  Nc6 {[%clk 0:15:24]} 3. Bb5 {[%clk 0:15:30]}  g6 {[%clk 0:14:56]} 4. O-O {[%clk 0:15:25]}  Bg7 {[%clk 0:15:03]} 5. c3 {[%clk 0:15:00]}  Nf6 {[%clk 0:14:26]} 6. Re1 {[%clk 0:15:02]}  O-O {[%clk 0:14:24]} 7. d4 {[%clk 0:15:10]}  d5 {[%clk 0:13:43]} 8. e5 {[%clk 0:15:14]}  Ne4 {[%clk 0:13:41]} 9. Be3 {[%clk 0:15:01]}  cxd4 {[%clk 0:13:20]} 10. cxd4 {[%clk 0:15:04]}  Qb6 {[%clk 0:13:27]} 11. Bxc6 {[%clk 0:13:24]}  Qxc6 {[%clk 0:13:32]} 12. Nfd2 {[%clk 0:13:25]}  Rd8 {[%clk 0:09:54]} 13. f3 {[%clk 0:12:40]}  Nxd2 {[%clk 0:10:00]} 14. Qxd2 {[%clk 0:12:48]}  Bf5 {[%clk 0:09:06]} 15. Nc3 {[%clk 0:12:41]}  Rac8 {[%clk 0:09:12]} 16. Bh6 {[%clk 0:10:58]}  Bxh6 {[%clk 0:07:23]} 17. Qxh6 {[%clk 0:11:05]}  Qb6 {[%clk 0:07:07]} 18. Qd2 {[%clk 0:11:10]}  Kg7 {[%clk 0:06:58]} 19. Rad1 {[%clk 0:09:14]}  Rc4 {[%clk 0:06:46]} 20. Qf2 {[%clk 0:08:40]}  a5 {[%clk 0:06:24]} 21. Rd2 {[%clk 0:08:24]}  Qc6 {[%clk 0:05:24]} 22. g4 {[%clk 0:06:50]}  Bc8 {[%clk 0:05:11]} 23. Nd1 {[%clk 0:06:44]}  Rc1 {[%clk 0:04:38]} 24. Ne3 {[%clk 0:06:37]}  Rxe1+ {[%clk 0:04:31]} 25. Qxe1 {[%clk 0:06:45]}  Qb6 {[%clk 0:04:39]} 26. h4 {[%clk 0:06:13]}  a4 {[%clk 0:02:47]} 27. Kg2 {[%clk 0:05:58]}  Qa5 {[%clk 0:02:41]} 28. a3 {[%clk 0:05:48]}  Be6 {[%clk 0:02:20]} 29. f4 {[%clk 0:05:08]}  f5 {[%clk 0:02:24]} 30. g5 {[%clk 0:03:13]}  Rc8 {[%clk 0:02:30]} 31. h5 {[%clk 0:03:10]}  gxh5 {[%clk 0:02:38]} 32. Qd1 {[%clk 0:02:44]}  h6 {[%clk 0:02:15]} 33. gxh6+ {[%clk 0:00:56]}  Kxh6 {[%clk 0:02:22]} 34. Kh1 {[%clk 0:01:05]}  Rg8 {[%clk 0:01:10]} 35. Rh2 {[%clk 0:00:58]}  Rg4 {[%clk 0:01:16]} 36. Nxg4+ {[%clk 0:00:26]}  fxg4 {[%clk 0:01:25]} 37. Qb1 {[%clk 0:00:25]}  Bf5 {[%clk 0:00:58]} 38. Qxf5 {[%clk 0:00:14]}  Qe1+ {[%clk 0:01:06]} 39. Kg2 {[%clk 0:00:23]}  Qe2+ {[%clk 0:01:08]} 40. Kg1 {[%clk 0:00:23]}  Qe1+ {[%clk 0:01:17]} 41. Kg2 {[%clk 0:00:21]} 1/2-1/2


[Site "http://www.Chess.com"]

[Event "FIDE World Rapid Chess Championship 2021"]
[White "Murzin, Volodar"]
[Black "Grischuk, Alexander"]
[WhiteFideId "44155573"]
[BlackFideId "4126025"]
[WhiteElo "2523"]
[BlackElo "2763"]
[Result "0-1"]
[Round "01"]
[TimeControl "900+10"]
[Date "2021.12.26"]
[WhiteClock "0:00:32"]
[BlackClock "0:00:52"]

1. e4 {[%clk 0:15:18]}  e6 {[%clk 0:15:17]} 2. d3 {[%clk 0:14:51]}  c5 {[%clk 0:14:59]} 3. Nd2 {[%clk 0:14:28]}  Nc6 {[%clk 0:15:04]} 4. g3 {[%clk 0:14:30]}  g6 {[%clk 0:15:07]} 5. Bg2 {[%clk 0:14:34]}  Bg7 {[%clk 0:15:15]} 6. Ngf3 {[%clk 0:14:19]}  Nge7 {[%clk 0:15:19]} 7. h4 {[%clk 0:11:21]}  h6 {[%clk 0:15:22]} 8. O-O {[%clk 0:11:24]}  d6 {[%clk 0:14:55]} 9. c3 {[%clk 0:09:58]}  e5 {[%clk 0:11:22]} 10. Nc4 {[%clk 0:07:00]}  Be6 {[%clk 0:10:27]} 11. h5 {[%clk 0:02:20]}  g5 {[%clk 0:09:21]} 12. Ne3 {[%clk 0:02:18]}  Qd7 {[%clk 0:05:49]} 13. Nd2 {[%clk 0:01:04]}  f5 {[%clk 0:04:56]} 14. exf5 {[%clk 0:00:39]}  Nxf5 {[%clk 0:05:04]} 15. Nxf5 {[%clk 0:00:22]}  Bxf5 {[%clk 0:05:12]} 16. Nc4 {[%clk 0:00:31]}  O-O {[%clk 0:03:25]} 17. Ne3 {[%clk 0:00:19]}  Be6 {[%clk 0:03:33]} 18. c4 {[%clk 0:00:13]}  Nd4 {[%clk 0:02:14]} 19. Bd2 {[%clk 0:00:21]}  g4 {[%clk 0:02:01]} 20. Be4 {[%clk 0:00:30]}  Rf3 {[%clk 0:00:47]} 21. Bc3 {[%clk 0:00:14]}  Raf8 {[%clk 0:00:55]} 22. Bxd4 {[%clk 0:00:15]}  exd4 {[%clk 0:00:55]} 23. Nd5 {[%clk 0:00:16]}  Be5 {[%clk 0:00:50]} 24. Qd2 {[%clk 0:00:14]}  Kg7 {[%clk 0:00:48]} 25. Rae1 {[%clk 0:00:15]}  b5 {[%clk 0:00:17]} 26. b3 {[%clk 0:00:17]}  b4 {[%clk 0:00:22]} 27. Qc1 {[%clk 0:00:13]}  a5 {[%clk 0:00:23]} 28. a3 {[%clk 0:00:16]}  bxa3 {[%clk 0:00:22]} 29. Qxa3 {[%clk 0:00:18]}  Qf7 {[%clk 0:00:31]} 30. Bg6 {[%clk 0:00:23]}  Qa7 {[%clk 0:00:26]} 31. Qa4 {[%clk 0:00:16]}  Bxd5 {[%clk 0:00:11]} 32. cxd5 {[%clk 0:00:23]}  Qc7 {[%clk 0:00:14]} 33. Qc6 {[%clk 0:00:24]}  Qe7 {[%clk 0:00:15]} 34. Re4 {[%clk 0:00:20]}  Kh8 {[%clk 0:00:15]} 35. Rxg4 {[%clk 0:00:13]}  Bxg3 {[%clk 0:00:22]} 36. Be4 {[%clk 0:00:22]}  Bxf2+ {[%clk 0:00:22]} 37. Kg2 {[%clk 0:00:19]}  R3f6 {[%clk 0:00:27]} 38. Qa4 {[%clk 0:00:13]}  Be3 {[%clk 0:00:32]} 39. Rxf6 {[%clk 0:00:14]}  Qxf6 {[%clk 0:00:28]} 40. Qd7 {[%clk 0:00:16]}  Qf1+ {[%clk 0:00:35]} 41. Kh2 {[%clk 0:00:14]}  Bf4+ {[%clk 0:00:44]} 42. Rxf4 {[%clk 0:00:17]}  Qxf4+ {[%clk 0:00:52]} 43. Kh1 {[%clk 0:00:18]}  Qf1+ {[%clk 0:00:35]} 44. Kh2 {[%clk 0:00:26]}  Rf2+ {[%clk 0:00:44]} 45. Kg3 {[%clk 0:00:32]}  Qg1+ {[%clk 0:00:52]} 0-1


[Site "http://www.Chess.com"]

[Event "FIDE World Rapid Chess Championship 2021"]
[White "Karjakin, Sergey"]
[Black "Christiansen, Johan-Sebastian"]
[WhiteFideId "14109603"]
[BlackFideId "1512668"]
[WhiteElo "2757"]
[BlackElo "2522"]
[Result "1/2-1/2"]
[Round "01"]
[TimeControl "900+10"]
[Date "2021.12.26"]
[WhiteClock "0:01:04"]
[BlackClock "0:00:18"]

1. Nf3 {[%clk 0:15:19]}  d5 {[%clk 0:15:16]} 2. g3 {[%clk 0:15:27]}  g6 {[%clk 0:14:47]} 3. Bg2 {[%clk 0:15:09]}  Bg7 {[%clk 0:14:55]} 4. d4 {[%clk 0:15:13]}  Nf6 {[%clk 0:14:56]} 5. c4 {[%clk 0:15:21]}  c6 {[%clk 0:13:58]} 6. cxd5 {[%clk 0:15:02]}  cxd5 {[%clk 0:14:06]} 7. Nc3 {[%clk 0:15:10]}  O-O {[%clk 0:14:08]} 8. Ne5 {[%clk 0:15:17]}  Nc6 {[%clk 0:13:56]} 9. O-O {[%clk 0:15:07]}  Nd7 {[%clk 0:14:04]} 10. Nxc6 {[%clk 0:13:25]}  bxc6 {[%clk 0:14:13]} 11. b3 {[%clk 0:13:33]}  e5 {[%clk 0:12:25]} 12. dxe5 {[%clk 0:13:40]}  Bxe5 {[%clk 0:12:02]} 13. Bb2 {[%clk 0:13:44]}  Re8 {[%clk 0:11:13]} 14. Rc1 {[%clk 0:12:51]}  Nb6 {[%clk 0:09:40]} 15. Qd2 {[%clk 0:12:35]}  a5 {[%clk 0:09:42]} 16. Rfd1 {[%clk 0:10:58]}  Bf5 {[%clk 0:09:48]} 17. e3 {[%clk 0:10:13]}  Rb8 {[%clk 0:05:22]} 18. Ba3 {[%clk 0:06:22]}  Bg4 {[%clk 0:03:33]} 19. Re1 {[%clk 0:05:38]}  Qd7 {[%clk 0:02:45]} 20. Bc5 {[%clk 0:05:37]}  a4 {[%clk 0:02:04]} 21. Nxa4 {[%clk 0:02:32]}  Nxa4 {[%clk 0:02:12]} 22. bxa4 {[%clk 0:02:41]}  Rb2 {[%clk 0:02:17]} 23. Rc2 {[%clk 0:02:49]}  Reb8 {[%clk 0:02:07]} 24. Ba3 {[%clk 0:02:57]}  Rxc2 {[%clk 0:01:35]} 25. Qxc2 {[%clk 0:03:06]}  Bf5 {[%clk 0:01:13]} 26. e4 {[%clk 0:03:01]}  dxe4 {[%clk 0:01:06]} 27. Bxe4 {[%clk 0:03:10]}  Bxe4 {[%clk 0:01:04]} 28. Qxe4 {[%clk 0:03:05]}  Bd4 {[%clk 0:00:46]} 29. Bc1 {[%clk 0:01:05]}  c5 {[%clk 0:00:21]} 30. Bf4 {[%clk 0:01:08]}  Rb2 {[%clk 0:00:18]} 31. Bh6 {[%clk 0:00:26]}  Bxf2+ {[%clk 0:00:26]} 32. Kh1 {[%clk 0:00:34]}  Rb8 {[%clk 0:00:35]} 33. Qe5 {[%clk 0:00:34]}  Qb7+ {[%clk 0:00:27]} 34. Re4 {[%clk 0:00:42]}  f5 {[%clk 0:00:13]} 35. Qe6+ {[%clk 0:00:50]}  Kh8 {[%clk 0:00:22]} 36. Qf6+ {[%clk 0:00:55]}  Kg8 {[%clk 0:00:32]} 37. Qe6+ {[%clk 0:01:04]}  Kh8 {[%clk 0:00:18]} 1/2-1/2


[Site "http://www.Chess.com"]